Cogmind - Beta 15 @@@ ROGUE MODE // 2025.07.21 @ 14:51:47 Player: Vizer Result: Destroyed by G-47 Trooper with Particle Gun Performance ------------- Evolutions (2) 1000 Regions Visited (5) 1000 Robots Destroyed (7) 35 Value Destroyed (187) 187 Prototype IDs (3) 60 Alien Tech Used (0) 0 Bonus (0) 0 TOTAL SCORE: 2282 Bonus ------- None Cogmind --------- Core Integrity 0/550 Matter 300/300 Energy 100/100 System Corruption 4% Temperature Cool (18) Movement Core (50) Location -8/Materials Parts ------- > --- POWER (1) -------- (None) > --- PROPULSION (3) --- (None) > --- UTILITY (5) ------ Visual Processing Unit Improved Signal Interpreter Hacking Suite > --- WEAPON (2) ------- (None) > --- INVENTORY (5) ---- Aluminum Leg Sensor Drone Bay (20/20) Assault Rifle Light Assault Rifle Peak State ------------ > --- POWER ------------ Light Ion Engine > --- PROPULSION ------- Combat Airjet Combat Airjet > --- UTILITY ---------- Visual Processing Unit Improved Signal Interpreter Terrain Scanner Hacking Suite Sensor Drone Bay > --- WEAPON ----------- Light Assault Rifle Flak Cannon > --- INVENTORY -------- Light Deuterium Engine Aluminum Leg Assault Rifle [Rating: 32] Favorites ----------- Power Light Nuclear Core Engine Ion Engine Power Core Light Nuclear Core Propulsion Combat Airjet Leg Aluminum Leg Hover Unit Combat Airjet Utility Terrain Scanner Device Terrain Scanner Storage Small Storage Unit Processor Improved Signal Interpreter Hackware Hacking Suite Weapon Assault Rifle Ballistic Gun Assault Rifle Ballistic Cannon Flak Cannon Build | -11 -10 -10 -10 -9 -8 ------- Run | Yrd Mat Min Exi Min Mat Slots Evolved 4 | . . . . . 4 Power . | . . . . . . Propulsion 1 | . . . . . 1 Utility 3 | . . . . . 3 Weapon . | . . . . . . Parts Attached 22 | 5 2 5 . . 10 Power 4 | 1 . 1 . . 2 Engine 3 | 1 . . . . 2 Core 1 | . . 1 . . . Reactor . | . . . . . . Propulsion 6 | 2 1 3 . . . Treads . | . . . . . . Leg 4 | 2 1 1 . . . Wheel . | . . . . . . Hover 2 | . . 2 . . . Flight . | . . . . . . Utility 8 | 1 1 1 . . 5 Device 4 | . 1 1 . . 2 Storage 1 | 1 . . . . . Processor 2 | . . . . . 2 Hackware 1 | . . . . . 1 Protection . | . . . . . . Artifact . | . . . . . . Weapon 4 | 1 . . . . 3 Energy Gun . | . . . . . . Energy Cannon . | . . . . . . Ballistic Gun 3 | 1 . . . . 2 Ballistic Cannon 1 | . . . . . 1 Launcher . | . . . . . . Special Weapon . | . . . . . . Impact Weapon . | . . . . . . Slashing Weapon . | . . . . . . Piercing Weapon . | . . . . . . Special Melee Weapon . | . . . . . . Unidentified Prototypes 1 | . . . . . 1 Parts Lost 9 | . . . . . 9 Power 3 | . . . . . 3 Propulsion 2 | . . . . . 2 Utility 3 | . . . . . 3 Weapon 1 | . . . . . 1 Highest Loss Streak 7 | . . . . . 7 To Critical Strikes . | . . . . . . Average Backups 3 | . . 3 4 4 4 Power 1 | . . 1 2 2 1 Propulsion . | . . 1 1 1 1 Utility . | . . . . . . Weapon . | . . . 1 1 . Tool/Special . | . . . . . . Unused Backups 1 | . . 1 . . . Power 1 | . . 1 . . . Propulsion . | . . . . . . Utility . | . . . . . . Weapon . | . . . . . . Tool/Special . | . . . . . . Average Slot Usage (%) 80 | . 71 84 85 85 78 Engine 4 | . 14 3 . . 3 Core 8 | . . 10 14 14 5 Leg 7 | . 28 8 . . . Hover 17 | . . 19 28 28 16 Device 19 | . . 23 28 28 19 Storage 3 | . 14 4 . . . Processor 2 | . . . . . 10 Hackware 2 | . . . . . 8 Ballistic Gun 14 | . 14 14 14 14 15 Peak Build Rating 32 | 5 6 16 16 17 32 Average Rating 14 | 4 5 13 16 16 24 On Entrance 10 | . 5 6 16 16 17 Naked Turns . | . . . . . . Heaviest Build 25 | 12 13 13 9 9 25 Greatest Support 24 | 20 20 24 24 24 24 Greatest Overweight (x) 4 | 1 . 4 . . 1 Average Overweight (x) . | . . . . . . Largest Inventory Capacity 8 | 8 8 8 5 5 5 Average Capacity 5 | 7 8 5 5 5 5 Most Carried 5 | . 1 5 4 5 5 Average Carried 3 | . . 3 4 4 4 Final Capacity 8 | 8 8 5 5 5 5 Final Carried 5 | . 1 4 4 5 4 Class Distribution -------------------- 57% | Scavenger-Mutant 28% | Mutant 13% | Scavenger-Scout Dominant Class ---------------- Mutant | -10/Materials Scavenger-Mutant | -10/Mines Scavenger-Mutant | -10/Exiles Scavenger-Mutant | -9/Mines Scavenger-Scout | -8/Materials Resources | -11 -10 -10 -10 -9 -8 ----------- Run | Yrd Mat Min Exi Min Mat Matter Collected 527 | 200 114 100 . . 113 Remotely . | . . . . . . Salvage Created 207 | . 84 30 . . 93 Parts 14 | . 2 6 . . 6 Haulers Intercepted . | . . . . . . Recyclers Shooed . | . . . . . . Parts Field Recycled . | . . . . . . Retrieved Matter . | . . . . . . Parts Self-Destructed . | . . . . . . Prevented . | . . . . . . Kills | -11 -10 -10 -10 -9 -8 ------- Run | Yrd Mat Min Exi Min Mat Combat Hostiles Destroyed 5 | . 2 2 . . 1 Guns 5 | . 2 2 . . 1 Classes Destroyed 5 | . 1 1 . . 3 Operator 1 | . . . . . 1 Watcher 1 | . . . . . 1 Swarmer 2 | . . 2 . . . Grunt 2 | . 2 . . . . Sentry 1 | . . . . . 1 Best Kill Streak 2 | . 2 2 . . 1 Combat Bots Only 2 | . 2 2 . . 1 Max Kills in Single Turn 1 | . 1 1 . . 1 Gunslinging . | . . . . . . Exploded . | . . . . . . Melee . | . . . . . . Uniques/NPCs Destroyed . | . . . . . . Combat | -11 -10 -10 -10 -9 -8 -------- Run | Yrd Mat Min Exi Min Mat Hostile Shots Fired 200 | . 50 11 . . 139 Missed 71 | . 16 4 . . 51 Hits 129 | . 34 7 . . 88 Melee 4 | . . . . . 4 Projectile 125 | . 34 7 . . 84 Critical Strikes 5 | . . . . . 5 Damage Taken 1847 | . 425 151 . . 1271 Core 720 | . 144 24 . . 552 Absorbed by Shields . | . . . . . . Core Remaining (%) 66 | 100 . . . 32 . Volleys Fired 38 | . 24 4 . . 10 Largest 2 | . 1 1 . . 2 Hottest 45 | . 20 20 . . 45 Shots Fired 48 | . 24 4 . . 20 Gun 48 | . 24 4 . . 20 Cannon . | . . . . . . Launcher . | . . . . . . Special . | . . . . . . Kinetic 48 | . 24 4 . . 20 Thermal . | . . . . . . Explosive . | . . . . . . Electromagnetic . | . . . . . . Robot Hit Streak 7 | . 6 2 . . 7 Robot Miss Streak 2 | . 2 2 . . 1 Penetration Max . | . . . . . . Secondary Targets . | . . . . . . Shots Hit Robots 35 | . 18 2 . . 15 Core Hits 16 | . 5 2 . . 9 Critical Kills . | . . . . . . Critical Parts Destroyed . | . . . . . . Critical Strikes . | . . . . . . Melee Attacks . | . . . . . . Impact . | . . . . . . Slashing . | . . . . . . Piercing . | . . . . . . Sneak Attacks . | . . . . . . Combat Hostiles . | . . . . . . Follow-up Attacks . | . . . . . . Damage Inflicted 428 | . 228 20 . . 180 Guns 425 | . 228 20 . . 177 Cannons . | . . . . . . Explosions . | . . . . . . Melee . | . . . . . . Ramming 3 | . . . . . 3 Kinetic 425 | . 228 20 . . 177 Thermal . | . . . . . . Explosive . | . . . . . . Electromagnetic . | . . . . . . Impact . | . . . . . . Slashing . | . . . . . . Piercing . | . . . . . . Highest Corruption 4 | . . . . . 4 Average Corruption 3 | . . . . . 3 Corruption Purged . | . . . . . . Corruption Blocked . | . . . . . . Effects 3 | . . . . . 3 Message Errors 1 | . . . . . 1 Matter Fused 2 | . . . . . 2 Overload Shots . | . . . . . . Overflow Damage . | . . . . . . Projectiles . | . . . . . . Explosions . | . . . . . . Melee . | . . . . . . Knockbacks . | . . . . . . Impact . | . . . . . . Kinetic . | . . . . . . Secondary . | . . . . . . Self-Inflicted Damage 1 | . . . . . 1 Shots . | . . . . . . Rammed 2 | . . . . . 2 Targets Rammed 2 | . . . . . 2 Kicked . | . . . . . . Crushed . | . . . . . . Highest Temperature 16 | . . . . . 16 Average Temperature 6 | . . . . . 6 Received Heat Transfer 690 | . 240 . . . 450 Siege Activations . | . . . . . . Martial Activations . | . . . . . . Shielding Activations . | . . . . . . Robots Disrupted . | . . . . . . Combat Hostiles . | . . . . . . Robots Corrupted . | . . . . . . Combat Hostiles . | . . . . . . Parts Fried . | . . . . . . Impact Corruptions . | . . . . . . Robots Melted . | . . . . . . Combat Hostiles . | . . . . . . Parts Melted . | . . . . . . Heat Transferred . | . . . . . . Parts Sabotaged . | . . . . . . Parts Stolen . | . . . . . . Parts Stripped . | . . . . . . Power Chain Reactions . | . . . . . . Alert | -11 -10 -10 -10 -9 -8 ------- Run | Yrd Mat Min Exi Min Mat Maximum Alert Level . | . . . . . . Low Security (%) 100 | 100 100 100 . 100 100 Level 1 . | . . . . . . Level 2 . | . . . . . . Level 3 . | . . . . . . Level 4 . | . . . . . . Level 5 . | . . . . . . High Security . | . . . . . . Max Security . | . . . . . . Peak Influence 65 | . 40 40 . . 65 Initial 7 | . . 7 . . . Average 6 | . 9 8 . . 9 Influence Increases 209 | . 50 50 . . 109 Destroy 0b10 Robot/C 100 | . 40 40 . . 20 Destroy 0b10 Robot/NC 10 | . . . . . 10 Destroy Leader 32 | . 10 10 . . 12 Successful Hack 6 | . . . . . 6 Destroy Structure 1 | . . . . . 1 Partial Spotted 15 | . . . . . 15 Lose Combat Pursuer 45 | . . . . . 45 Influence Decreases 209 | . 30 70 . . 109 Entered New Map 13 | . . 13 . . . Time Decay 134 | . 30 57 . . 47 Lost Part 62 | . . . . . 62 Squads Dispatched 6 | . 3 . . . 3 Investigation 5 | . 2 . . . 3 Extermination . | . . . . . . Reinforcement 1 | . 1 . . . . Assault . | . . . . . . Garrison . | . . . . . . Intercept . | . . . . . . Searches Triggered . | . . . . . . Construction Impeded . | . . . . . . Haulers Reinforced . | . . . . . . Active Scanning Responses . | . . . . . . Cargo Convoy Interrupts . | . . . . . . Stealth | -11 -10 -10 -10 -9 -8 --------- Run | Yrd Mat Min Exi Min Mat Distress Signals 1 | . . . . . 1 Communications Jammed . | . . . . . . Distress Signals . | . . . . . . Times Spotted 34 | . 8 4 . . 22 Peak Tracking Total 13 | . 6 3 . . 13 Tactical Retreats 1 | . . . . . 1 Traps | -11 -10 -10 -10 -9 -8 ------- Run | Yrd Mat Min Exi Min Mat Traps Triggered 3 | . . . . . 3 Indirectly . | . . . . . . Trap Hack Attempts . | . . . . . . Triggered . | . . . . . . Disarmed . | . . . . . . Reprogrammed . | . . . . . . Reused . | . . . . . . Traps Extracted . | . . . . . . Installed . | . . . . . . Triggered . | . . . . . . Machines | -11 -10 -10 -10 -9 -8 ---------- Run | Yrd Mat Min Exi Min Mat Machines Disabled . | . . . . . . Max in Single Turn . | . . . . . . Machines Repaired . | . . . . . . Machines Dismantled . | . . . . . . Machines Sabotaged . | . . . . . . Overloaded Fab Kills . | . . . . . . Hacking | -11 -10 -10 -10 -9 -8 --------- Run | Yrd Mat Min Exi Min Mat Machines Accessed 8 | . 3 . . 1 4 Terminals 7 | . 3 . . . 4 Fabricators . | . . . . . . Repair Stations . | . . . . . . Recycling Units . | . . . . . . Scanalyzers . | . . . . . . Garrison Access . | . . . . . . Total Hacks 26 | . 10 . . 1 15 Successful 10 | . 3 . . 1 6 Failed 16 | . 7 . . . 9 Catastrophic 3 | . 2 . . . 1 Database Lockouts . | . . . . . . Manual 11 | . 7 . . . 4 Terminals 25 | . 10 . . . 15 Fabricators . | . . . . . . Repair Stations . | . . . . . . Recycling Units . | . . . . . . Scanalyzers . | . . . . . . Garrison Access . | . . . . . . Terminal Hacks 7 | . 1 . . 1 5 Prototype ID Bank 1 | . . . . . 1 Open Door 1 | . . . . 1 . Dispatch Records 1 | . 1 . . . . Maintenance Status 1 | . . . . . 1 Patrol Status 1 | . . . . . 1 Recall Investigation 1 | . . . . . 1 Recall Reinforcements 1 | . . . . . 1 Fabricator Hacks . | . . . . . . Repair Station Hacks . | . . . . . . Recycling Unit Hacks . | . . . . . . Scanalyzer . | . . . . . . Garrison Access Hacks . | . . . . . . Unauthorized Hacks 3 | . 2 . . . 1 Terminals 3 | . 2 . . . 1 Botnet 2 | . 1 . . . 1 Operators 1 | . 1 . . . . Fabricators . | . . . . . . Repair Stations . | . . . . . . Recycling Units . | . . . . . . Scanalyzers . | . . . . . . Garrison Access . | . . . . . . Data Cores Recovered 1 | . . . . . 1 Used 1 | . . . . . 1 Hacking Detections 7 | . 3 . . . 4 Full Trace Events 5 | . 2 . . . 3 Feedback Events . | . . . . . . Feedback Blocked . | . . . . . . Robot Schematics Acquired . | . . . . . . Robots Built . | . . . . . . Authchips . | . . . . . . Time . | . . . . . . Total Robot Build Rating . | . . . . . . Part Schematics Acquired . | . . . . . . Parts Built . | . . . . . . Authchips . | . . . . . . Time . | . . . . . . Total Part Build Rating . | . . . . . . Parts Repaired . | . . . . . . Time . | . . . . . . Parts Recycled . | . . . . . . Recycled Matter . | . . . . . . Retrieved Matter . | . . . . . . Retrieved Components . | . . . . . . Parts Scanalyzed . | . . . . . . Part Schematics Acquired . | . . . . . . Parts Damaged . | . . . . . . Bothacking | -11 -10 -10 -10 -9 -8 ------------ Run | Yrd Mat Min Exi Min Mat Used RIF Installer . | . . . . . . Robots Hacked . | . . . . . . Non-combat . | . . . . . . Combat . | . . . . . . Robot Hacks Applied . | . . . . . . Relay Couplers Released . | . . . . . . Fabnet Peak Effective % . | . . . . . . Robots Rewired . | . . . . . . Allies Hacked . | . . . . . . Hacks Repelled . | . . . . . . Allies | -11 -10 -10 -10 -9 -8 -------- Run | Yrd Mat Min Exi Min Mat Total Allies . | . . . . . . Largest Group . | . . . . . . Highest-Rated Group . | . . . . . . Highest-Rated Ally . | . . . . . . Total Orders . | . . . . . . Ally Attacks . | . . . . . . Total Damage . | . . . . . . Kills . | . . . . . . Allies Corrupted . | . . . . . . Allies Melted . | . . . . . . Intel | -11 -10 -10 -10 -9 -8 ------- Run | Yrd Mat Min Exi Min Mat Active Infowar (turns) 778 | . 16 247 37 249 229 Optics 101 | . . . . . 101 Sensors 652 | . . 172 37 249 194 Terrain 748 | . 16 247 37 249 199 Robot Analysis Total . | . . . . . . Derelict Logs Recovered 3 | . . 1 . 2 . Drone Launches . | . . . . . . Drone Recoveries . | . . . . . . Exploration | -11 -10 -10 -10 -9 -8 ------------- Run | Yrd Mat Min Exi Min Mat Turns Passed 999 | 65 172 247 37 249 229 Spaces Moved 984 | 45 90 243 48 323 235 Core 38 | 1 . 14 . . 23 Treads . | . . . . . . Legs 154 | 44 90 20 . . . Wheels . | . . . . . . Hover 792 | . . 209 48 323 212 Flight . | . . . . . . Fastest Speed 50 | 50 120 77 77 77 50 Average Speed 86 | 124 120 90 77 77 75 Slowest Speed 250 | 190 120 250 77 77 147 Overloaded Moves . | . . . . . . Propulsion Burnouts . | . . . . . . Robots Hopped . | . . . . . . Potential Cave-ins . | . . . . . . Cave-ins Triggered 1 | . . 1 . . . Exploration Rate (%) 21 | 3 16 26 9 47 25 Regions Visited 5 Branch Regions 3 Pre-discovered Areas 4 | . . 1 . 3 . Known Exits Taken . | . . . . . . Unknown Exits Taken 5 | 1 1 1 1 1 . Scrap Searched 1 | . . 1 . . . Spaces Dug . | . . . . . . Terrain Destroyed . | . . . . . . Melee . | . . . . . . Projectile . | . . . . . . AOE . | . . . . . . Terrain Rammed . | . . . . . . Walls Destroyed . | . . . . . . Machines Disabled . | . . . . . . Actions | -11 -10 -10 -10 -9 -8 --------- Run | Yrd Mat Min Exi Min Mat Total 1086 | 51 129 267 47 323 269 Wait 27 | 2 14 3 . . 8 Move 979 | 44 89 242 47 322 235 Hop . | . . . . . . Pick Up 6 | . . 4 . 1 1 Fast Attach 14 | 5 1 3 . . 5 Attach 5 | . . . . . 5 Detach 4 | . . 1 . . 3 Swap 4 | . 1 3 . . . Drop 7 | . . 7 . . . Fire 38 | . 24 4 . . 10 Melee . | . . . . . . Ram 2 | . . . . . 2 Kick . | . . . . . . Crush . | . . . . . . Escape Stasis . | . . . . . . Rewire . | . . . . . . Trap . | . . . . . . Miscellaneous . | . . . . . . Route ------- -11/Scrapyard -10/Materials -10/Mines (discovered 2 exits: [*Mat] / [*Exi]) -10/Exiles -9/Mines -8/Materials History --------- Turn | Location | Event 15 | -11/Scrapyard | Discovered new exit (range 16) 66 | -11/Scrapyard | Entered Materials 94 | -10/Materials | Discovered new exit (range 12) 188 | -10/Materials | Core integrity fell below 50% 215 | -10/Materials | Met 8R-AWN 238 | -10/Materials | Entered Mines 239 | -10/Mines | Assembled infested the area 241 | -10/Mines | Followed 8R-AWN into the Mines 357 | -10/Mines | Discovered new exit (range 5) 380 | -10/Mines | Discovered new exit (range 7) 401 | -10/Mines | Learned location of Storage (-9) 451 | -10/Mines | Crushed by falling debris 485 | -10/Mines | Entered Exiles 512 | -10/Exiles | Discovered new exit (range 14) 522 | -10/Exiles | Entered Mines 530 | -9/Mines | Found the Drone Emporium 533 | -9/Mines | Found Prototype Device 579 | -9/Mines | Learned location of Zion (-7) 584 | -9/Mines | Build established: Scavenger-Mutant 740 | -9/Mines | Discovered new exit (range 5) 771 | -9/Mines | Entered Materials 771 | -8/Materials | Evolved 4 slots: Propulsion x1, Utility x3 966 | -8/Materials | Identified Sensor Drone Bay 988 | -8/Materials | Core integrity fell below 50% 996 | -8/Materials | Core integrity fell below 20% 1000 | -8/Materials | Destroyed by G-47 Trooper with Particle Gun Last Messages --------------- 00981_ Critical hit (Burn: +37). 00981_ R-06 Scavenger collects Lgt. Nuclear Core. 00981_ Lgt. Deuterium Engine destroyed. 00984_ K-01 Serf collects debris. 00984_ R-06 Scavenger collects Heat Sink. 00986_ Cmb. Airjet destroyed. 00987_ Acquired 42 matter. 00988_ R-06 Scavenger collects Lgt. Treads. 00988_ K-01 Serf collects debris. 00988_ Slammed into Y-45 Defender. 00989_ Penetrated by Slug. 00989_ Slammed into G-47 Trooper. 00989_ Destabilizing: System interference. 00989_ Imp. Signal Interpreter temporarily disabled. 00990_ Acquired 7 matter. 00992_ R-06 Scavenger collects Tractor Beam. 00993_ R-06 Scavenger collects Lgt. Ion Engine. 00993_ Slug penetrates Wall. Map ----- +----------------------------------------------------+ | #################??????????????????????????????? | | = #??????????????????????????????? | | #??????????????????????????????? | | !!! ##?????????????????????????????? | | ##### !!! #??????????????????????????????? | | #???# !!! #??????????????????????????????? | | +#####?# " #??????????????????????????????? | | # T ########???????????????????????? | | # " # #???????????????????????? | | + # T #???????????????????????? | | # # #???????????????????????? | | !!! ### #### / ! #???????????????????????? | | !! ???# #??# %#[ = #???????#???????????????? | | !! ???# #??# #=] * #???????????????????????? | | ## ##????# #??# ########???????????????????????? | | ?##?######+#### #?#####????????????????????????? | | ????# ! ## # ! #??????????????????????? | | ????# """## # #??#???????????????????? | | ??#?# """## + """ #??????????????????????? | | ????# """## # """ #??????????????????????? | | ? / ! ## #?""" #??????????????????????? | | # """## ##?######??????????????????????? | | ###?# """# ###########???????????????????? | | ????# """# g #???????????????????? | | ????# # [ !r g #???????????????????? | | ????#+######## @ #???????????????????? | | ?????????????# ####### #???????????????????? | | ?????????????#######?????? #???????????????????? | | ??????????????????????????? #???????????????????? | | ??????????????????????????? #???????????????????? | | ???????????????????????????? #???????????????????? | | ???????????????????????????? #???????????????????? | | ?????????????????????????????#???????????????????? | | ?????????????????????????????????????????????????? | | ?????????????????????????????????????????????????? | | ?????????????????????????????????????????????????? | | ?????????????????????????????????????????????????? | | ?????????????????????????????????????????????????? | | ?????????????????????????????????????????????????? | | ?????????????????????????????????????????????????? | | ?????????????????????????????????????????????????? | | ?????????????????????????????????????????????????? | | ?????????????????????????????????????????????????? | | ?????????????????????????????????????????????????? | | ?????????????????????????????????????????????????? | | ?????????????????????????????????????????????????? | | ?????????????????????????????????????????????????? | | ?????????????????????????????????????????????????? | | ?????????????????????????????????????????????????? | | ?????????????????????????????????????????????????? | +----------------------------------------------------+ Best States ------------- Heat Dissipation 31 Energy Generation 14 Energy Capacity 250 Matter Stores 300 Matter Capacity 300 Sight Range 18 Robot Scan Range 14 Terrain Scan Range 14 Terrain Scan Density 10 Evasion (%) 57 Offensive Hacking 10 Item Schematics ----------------- None Robot Schematics ------------------ None Fabricated ------------ Nothing Repaired ---------- Nothing Alien Tech Used ----------------- None Achievements -------------- None Challenges ------------ None Game ------ Seed NetworkedAlloyFocus Manual? 0 Play Time 00:32:42 Cumulative 21.7 hours Start 2025.07.21 @ 13:30:03 End 2025.07.21 @ 14:51:47 Sessions 1 Manual Loads 0 Difficulty Rogue Special Mode None Game No. 17 Rogue 17 Adventurer 0 Explorer 0 Win Type - Total 0 Types 0/0/0/0/0/0/0/0/0/0 Lore% 11 Gallery% 22 Achievement% 25 Wizard Run 0 Options --------- Layout 1 ASCII 0 Keyboard 1 Movement Vi Keybinds 0 Fullscreen 2 Font 24/Smallcaps Map View 50x35 Zoom Use 0% Tactical HUD 1 Map Filters NONE Filters NONE Steam 1 RUN: 5a39838f-a8dc-4a4d-a2b2-7c2ea3db354a